[Event "Titled Tuesday Blitz October 25 Late 2022"]
[White "Castellanos Gomez, Alejandro"]
[Black "Omariev, Maksim"]
[WhiteFideId "22284141"]
[BlackFideId "4193423"]
[WhiteElo "2168"]
[BlackElo "2420"]
[Result "1-0"]
[Round "11"]
[TimeControl "180+1"]
[Date "2022.10.26"]
[WhiteClock "0:00:03"]
[BlackClock "0:00:01"]

1. e4 {[%clk 0:02:57]}  c5 {[%clk 0:02:59]} 2. d4 {[%clk 0:02:57]}  cxd4 {[%clk 0:02:59]} 3. c3 {[%clk 0:02:57]}  dxc3 {[%clk 0:03:00]} 4. Nf3 {[%clk 0:02:57]}  e6 {[%clk 0:03:01]} 5. Bc4 {[%clk 0:02:57]}  cxb2 {[%clk 0:03:01]} 6. Bxb2 {[%clk 0:02:56]}  a6 {[%clk 0:03:01]} 7. O-O {[%clk 0:02:52]}  Nc6 {[%clk 0:03:01]} 8. a4 {[%clk 0:02:50]}  d6 {[%clk 0:02:57]} 9. Nc3 {[%clk 0:02:45]}  Nf6 {[%clk 0:02:56]} 10. Re1 {[%clk 0:02:44]}  Be7 {[%clk 0:02:56]} 11. Rb1 {[%clk 0:02:41]}  O-O {[%clk 0:02:56]} 12. Bc1 {[%clk 0:02:41]}  b6 {[%clk 0:02:45]} 13. Be3 {[%clk 0:02:38]}  Nd7 {[%clk 0:02:44]} 14. h4 {[%clk 0:02:29]}  Bb7 {[%clk 0:02:41]} 15. Ng5 {[%clk 0:02:20]}  h6 {[%clk 0:02:27]} 16. Nxe6 {[%clk 0:01:55]}  fxe6 {[%clk 0:02:26]} 17. Bxe6+ {[%clk 0:01:54]}  Kh8 {[%clk 0:02:22]} 18. Nd5 {[%clk 0:01:34]}  Nc5 {[%clk 0:02:16]} 19. Bf5 {[%clk 0:01:29]}  b5 {[%clk 0:02:01]} 20. axb5 {[%clk 0:01:27]}  axb5 {[%clk 0:02:02]} 21. Qh5 {[%clk 0:01:17]}  Rxf5 {[%clk 0:01:37]} 22. exf5 {[%clk 0:01:04]}  Ra4 {[%clk 0:00:30]} 23. Nxe7 {[%clk 0:00:39]}  Nxe7 {[%clk 0:00:25]} 24. f6 {[%clk 0:00:39]}  Ng8 {[%clk 0:00:18]} 25. f7 {[%clk 0:00:25]}  Nf6 {[%clk 0:00:18]} 26. Bxc5 {[%clk 0:00:20]}  Re4 {[%clk 0:00:09]} 27. Rxe4 {[%clk 0:00:16]}  Bxe4 {[%clk 0:00:10]} 28. Qe2 {[%clk 0:00:05]}  dxc5 {[%clk 0:00:10]} 29. Rxb5 {[%clk 0:00:01]}  Bg6 {[%clk 0:00:10]} 30. Rb7 {[%clk 0:00:01]}  Qf8 {[%clk 0:00:08]} 31. Qb5 {[%clk 0:00:01]}  Bxf7 {[%clk 0:00:07]} 32. Rb8 {[%clk 0:00:02]}  Be8 {[%clk 0:00:08]} 33. Qb7 {[%clk 0:00:02]}  c4 {[%clk 0:00:06]} 34. f3 {[%clk 0:00:02]}  Qc5+ {[%clk 0:00:05]} 35. Kh2 {[%clk 0:00:02]}  c3 {[%clk 0:00:06]} 36. Rc8 {[%clk 0:00:01]}  Qe5+ {[%clk 0:00:05]} 37. g3 {[%clk 0:00:01]}  Qe2+ {[%clk 0:00:05]} 38. Kh3 {[%clk 0:00:02]}  c2 {[%clk 0:00:05]} 39. Qc6 {[%clk 0:00:01]}  Qf1+ {[%clk 0:00:03]} 40. Kh2 {[%clk 0:00:01]}  Qf2+ {[%clk 0:00:03]} 41. Kh3 {[%clk 0:00:01]}  Qf1+ {[%clk 0:00:02]} 42. Kh2 {[%clk 0:00:02]}  Kh7 {[%clk 0:00:02]} 43. Qxc2+ {[%clk 0:00:02]}  Kg8 {[%clk 0:00:02]} 44. Qd2 {[%clk 0:00:02]}  Qb5 {[%clk 0:00:01]} 45. Qa2+ {[%clk 0:00:03]} 1-0


[Site "https://www.chess.com"]

[Event "Titled Tuesday Blitz October 25 Late 2022"]
[White "Celestino, Rafael Teixeira"]
[Black "Ballester Llagaria, Luis Eduardo"]
[WhiteFideId "2108925"]
[BlackFideId "2297620"]
[WhiteElo "2430"]
[BlackElo "2344"]
[Result "1-0"]
[Round "11"]
[TimeControl "180+1"]
[Date "2022.10.26"]
[WhiteClock "0:00:21"]
[BlackClock "0:01:00"]

1. e4 {[%clk 0:03:00]}  Nf6 {[%clk 0:02:58]} 2. Nc3 {[%clk 0:02:59]}  e5 {[%clk 0:02:57]} 3. Bc4 {[%clk 0:02:58]}  Nc6 {[%clk 0:02:58]} 4. d3 {[%clk 0:02:58]}  Na5 {[%clk 0:02:59]} 5. Bb5 {[%clk 0:02:57]}  a6 {[%clk 0:02:58]} 6. Ba4 {[%clk 0:02:58]}  b5 {[%clk 0:02:59]} 7. Bb3 {[%clk 0:02:58]}  Nxb3 {[%clk 0:03:00]} 8. axb3 {[%clk 0:02:59]}  d5 {[%clk 0:03:01]} 9. Bg5 {[%clk 0:02:58]}  Bb4 {[%clk 0:02:51]} 10. Bxf6 {[%clk 0:02:48]}  Qxf6 {[%clk 0:02:52]} 11. exd5 {[%clk 0:02:45]}  O-O {[%clk 0:02:48]} 12. Qf3 {[%clk 0:02:31]}  Qg6 {[%clk 0:02:44]} 13. Qg3 {[%clk 0:02:06]}  Qd6 {[%clk 0:02:39]} 14. Ne2 {[%clk 0:01:36]}  Qxd5 {[%clk 0:02:37]} 15. O-O {[%clk 0:01:37]}  Qe6 {[%clk 0:02:21]} 16. Nxb5 {[%clk 0:01:31]}  Qc6 {[%clk 0:02:08]} 17. Nbc3 {[%clk 0:01:25]}  Bd6 {[%clk 0:02:09]} 18. Ne4 {[%clk 0:01:17]}  Qxc2 {[%clk 0:02:08]} 19. Rfd1 {[%clk 0:00:46]}  Qxe2 {[%clk 0:02:07]} 20. Nf6+ {[%clk 0:00:42]}  Kh8 {[%clk 0:02:06]} 21. Qh4 {[%clk 0:00:42]}  h6 {[%clk 0:02:03]} 22. Ne4 {[%clk 0:00:38]}  Bb7 {[%clk 0:01:57]} 23. Ng3 {[%clk 0:00:38]}  Bc5 {[%clk 0:01:50]} 24. Nxe2 {[%clk 0:00:37]}  Rad8 {[%clk 0:01:45]} 25. d4 {[%clk 0:00:34]}  exd4 {[%clk 0:01:43]} 26. Nxd4 {[%clk 0:00:35]}  Rd5 {[%clk 0:01:34]} 27. Nf3 {[%clk 0:00:32]}  Rf5 {[%clk 0:01:34]} 28. Qg4 {[%clk 0:00:28]}  Rf6 {[%clk 0:01:30]} 29. Ne5 {[%clk 0:00:27]}  Bd6 {[%clk 0:01:29]} 30. Nd7 {[%clk 0:00:26]}  Rg6 {[%clk 0:01:24]} 31. Qxg6 {[%clk 0:00:26]}  fxg6 {[%clk 0:01:25]} 32. Nxf8 {[%clk 0:00:26]}  Bxf8 {[%clk 0:01:26]} 33. Rd8 {[%clk 0:00:26]}  Kg8 {[%clk 0:01:26]} 34. Re1 {[%clk 0:00:26]}  Kf7 {[%clk 0:01:26]} 35. Rb8 {[%clk 0:00:26]}  Bd5 {[%clk 0:01:23]} 36. Rc8 {[%clk 0:00:25]}  Bd6 {[%clk 0:01:23]} 37. Rd1 {[%clk 0:00:24]}  Bxb3 {[%clk 0:01:22]} 38. Rxd6 {[%clk 0:00:24]}  cxd6 {[%clk 0:01:23]} 39. Rc6 {[%clk 0:00:23]}  d5 {[%clk 0:01:18]} 40. Rxa6 {[%clk 0:00:23]}  Ke7 {[%clk 0:01:17]} 41. f3 {[%clk 0:00:23]}  d4 {[%clk 0:01:15]} 42. Kf2 {[%clk 0:00:23]}  g5 {[%clk 0:01:12]} 43. g3 {[%clk 0:00:22]}  Bc2 {[%clk 0:01:09]} 44. Ke2 {[%clk 0:00:22]}  Bf5 {[%clk 0:01:05]} 45. Kd2 {[%clk 0:00:21]}  Kf7 {[%clk 0:01:03]} 46. b4 {[%clk 0:00:21]}  Ke7 {[%clk 0:01:01]} 47. b5 {[%clk 0:00:22]}  Kd7 {[%clk 0:01:02]} 48. Ra7+ {[%clk 0:00:20]}  Kd6 {[%clk 0:01:01]} 49. Rxg7 {[%clk 0:00:21]}  Kc5 {[%clk 0:01:02]} 50. Rf7 {[%clk 0:00:21]}  Bc8 {[%clk 0:01:00]} 51. Rc7+ {[%clk 0:00:21]} 1-0


[Site "https://www.chess.com"]

[Event "Titled Tuesday Blitz October 25 Late 2022"]
[White "Chigaev, Maksim"]
[Black "Djordjevic, Vuk"]
[WhiteFideId "4108116"]
[BlackFideId "902098"]
[WhiteElo "2537"]
[BlackElo "2456"]
[Result "0-1"]
[Round "11"]
[TimeControl "180+1"]
[Date "2022.10.26"]
[WhiteClock "0:00:05"]
[BlackClock "0:00:04"]

1. Nf3 {[%clk 0:03:00]}  Nf6 {[%clk 0:02:59]} 2. c4 {[%clk 0:03:01]}  e6 {[%clk 0:02:59]} 3. g3 {[%clk 0:03:01]}  d5 {[%clk 0:03:00]} 4. Bg2 {[%clk 0:03:02]}  Be7 {[%clk 0:03:00]} 5. O-O {[%clk 0:03:02]}  O-O {[%clk 0:03:01]} 6. b3 {[%clk 0:03:03]}  a5 {[%clk 0:03:01]} 7. Nc3 {[%clk 0:03:03]}  c6 {[%clk 0:03:00]} 8. d4 {[%clk 0:03:00]}  b6 {[%clk 0:02:53]} 9. Qd3 {[%clk 0:02:56]}  Ba6 {[%clk 0:02:51]} 10. a4 {[%clk 0:02:40]}  Nbd7 {[%clk 0:02:41]} 11. Rd1 {[%clk 0:02:39]}  Bb4 {[%clk 0:02:36]} 12. Bg5 {[%clk 0:02:31]}  Bxc3 {[%clk 0:02:28]} 13. Qxc3 {[%clk 0:02:14]}  Ne4 {[%clk 0:02:28]} 14. Qc1 {[%clk 0:02:15]}  Nxg5 {[%clk 0:02:28]} 15. Nxg5 {[%clk 0:02:16]}  Rc8 {[%clk 0:02:05]} 16. Nf3 {[%clk 0:02:10]}  c5 {[%clk 0:01:51]} 17. dxc5 {[%clk 0:01:51]}  Nxc5 {[%clk 0:01:32]} 18. Qe3 {[%clk 0:01:34]}  Qf6 {[%clk 0:01:21]} 19. cxd5 {[%clk 0:01:30]}  exd5 {[%clk 0:01:21]} 20. Nd4 {[%clk 0:01:31]}  Rfe8 {[%clk 0:01:18]} 21. Qf3 {[%clk 0:01:27]}  Qxf3 {[%clk 0:00:57]} 22. Bxf3 {[%clk 0:01:28]}  Ne4 {[%clk 0:00:58]} 23. e3 {[%clk 0:00:55]}  g6 {[%clk 0:00:47]} 24. Rac1 {[%clk 0:00:48]}  Nc3 {[%clk 0:00:40]} 25. Rd2 {[%clk 0:00:43]}  Ne4 {[%clk 0:00:21]} 26. Rdc2 {[%clk 0:00:42]}  Rxc2 {[%clk 0:00:21]} 27. Rxc2 {[%clk 0:00:43]}  Bb7 {[%clk 0:00:13]} 28. Rc7 {[%clk 0:00:35]}  Nc5 {[%clk 0:00:13]} 29. g4 {[%clk 0:00:29]}  Rd8 {[%clk 0:00:13]} 30. g5 {[%clk 0:00:21]}  Rd7 {[%clk 0:00:08]} 31. Rxd7 {[%clk 0:00:22]}  Nxd7 {[%clk 0:00:09]} 32. h4 {[%clk 0:00:21]}  f6 {[%clk 0:00:06]} 33. Kh2 {[%clk 0:00:20]}  Kf7 {[%clk 0:00:05]} 34. Kg3 {[%clk 0:00:20]}  Nc5 {[%clk 0:00:05]} 35. Bg2 {[%clk 0:00:19]}  Ne6 {[%clk 0:00:04]} 36. Ne2 {[%clk 0:00:06]}  Nc5 {[%clk 0:00:04]} 37. Nd4 {[%clk 0:00:06]}  Ne6 {[%clk 0:00:04]} 38. gxf6 {[%clk 0:00:03]}  Kxf6 {[%clk 0:00:04]} 39. Bh3 {[%clk 0:00:03]}  Nxd4 {[%clk 0:00:04]} 40. exd4 {[%clk 0:00:04]}  Bc6 {[%clk 0:00:05]} 41. Bg2 {[%clk 0:00:03]}  h6 {[%clk 0:00:05]} 42. f4 {[%clk 0:00:04]}  Bb7 {[%clk 0:00:05]} 43. Bf3 {[%clk 0:00:04]}  Bc6 {[%clk 0:00:05]} 44. Kf2 {[%clk 0:00:04]}  Bb7 {[%clk 0:00:05]} 45. Ke3 {[%clk 0:00:05]}  Bc6 {[%clk 0:00:06]} 46. Bg4 {[%clk 0:00:05]}  Be8 {[%clk 0:00:05]} 47. Bc8 {[%clk 0:00:05]}  Bf7 {[%clk 0:00:05]} 48. Bh3 {[%clk 0:00:05]}  Be6 {[%clk 0:00:05]} 49. Bg2 {[%clk 0:00:05]}  Kf5 {[%clk 0:00:04]} 0-1


[Site "https://www.chess.com"]

[Event "Titled Tuesday Blitz October 25 Late 2022"]
[White "Cortes Orihuela, Javier"]
[Black "Almedina Ortiz, Edgardo J."]
[WhiteFideId "3414329"]
[BlackFideId "3100197"]
[WhiteElo "2080"]
[BlackElo "2217"]
[Result "1-0"]
[Round "11"]
[TimeControl "180+1"]
[Date "2022.10.26"]
[WhiteClock "0:00:10"]
[BlackClock "0:00:02"]

1. d4 {[%clk 0:03:00]}  Nf6 {[%clk 0:02:59]} 2. c4 {[%clk 0:03:00]}  e6 {[%clk 0:02:59]} 3. g3 {[%clk 0:03:00]}  d5 {[%clk 0:02:57]} 4. Nf3 {[%clk 0:02:59]}  Be7 {[%clk 0:02:52]} 5. Bg2 {[%clk 0:02:59]}  O-O {[%clk 0:02:53]} 6. Nc3 {[%clk 0:02:59]}  c6 {[%clk 0:02:52]} 7. O-O {[%clk 0:02:58]}  b6 {[%clk 0:02:52]} 8. Qd3 {[%clk 0:02:58]}  Ba6 {[%clk 0:02:51]} 9. b3 {[%clk 0:02:58]}  Nbd7 {[%clk 0:02:48]} 10. e4 {[%clk 0:02:56]}  dxc4 {[%clk 0:01:56]} 11. bxc4 {[%clk 0:02:56]}  e5 {[%clk 0:01:56]} 12. dxe5 {[%clk 0:02:03]}  Ng4 {[%clk 0:01:53]} 13. Bf4 {[%clk 0:02:01]}  Nc5 {[%clk 0:01:20]} 14. Qe2 {[%clk 0:01:08]}  Qd3 {[%clk 0:01:12]} 15. Qxd3 {[%clk 0:01:06]}  Nxd3 {[%clk 0:01:13]} 16. h3 {[%clk 0:01:06]}  Nxf4 {[%clk 0:01:05]} 17. gxf4 {[%clk 0:01:06]}  Nh6 {[%clk 0:01:05]} 18. Nd4 {[%clk 0:00:59]}  Rac8 {[%clk 0:00:56]} 19. Rfd1 {[%clk 0:00:49]}  Bxc4 {[%clk 0:00:54]} 20. Bf1 {[%clk 0:00:39]}  Bxf1 {[%clk 0:00:51]} 21. Kxf1 {[%clk 0:00:40]}  Rfd8 {[%clk 0:00:42]} 22. Rac1 {[%clk 0:00:36]}  Bc5 {[%clk 0:00:32]} 23. Nb3 {[%clk 0:00:30]}  Ba3 {[%clk 0:00:28]} 24. Rb1 {[%clk 0:00:27]}  Kf8 {[%clk 0:00:25]} 25. Ke2 {[%clk 0:00:26]}  Ng8 {[%clk 0:00:24]} 26. Nd2 {[%clk 0:00:26]}  Ne7 {[%clk 0:00:21]} 27. Nc4 {[%clk 0:00:26]}  Bc5 {[%clk 0:00:18]} 28. Na4 {[%clk 0:00:23]}  Bd4 {[%clk 0:00:18]} 29. Nd6 {[%clk 0:00:22]}  c5 {[%clk 0:00:15]} 30. Nxc8 {[%clk 0:00:20]}  Rxc8 {[%clk 0:00:15]} 31. Rbc1 {[%clk 0:00:20]}  Re8 {[%clk 0:00:14]} 32. Nc3 {[%clk 0:00:20]}  Ng6 {[%clk 0:00:11]} 33. Nb5 {[%clk 0:00:18]}  Nxf4+ {[%clk 0:00:11]} 34. Kf3 {[%clk 0:00:19]}  Bxe5 {[%clk 0:00:11]} 35. Nd6 {[%clk 0:00:18]}  Bxd6 {[%clk 0:00:08]} 36. Rxd6 {[%clk 0:00:19]}  Ne6 {[%clk 0:00:07]} 37. Kg2 {[%clk 0:00:15]}  g5 {[%clk 0:00:06]} 38. f3 {[%clk 0:00:14]}  Kg7 {[%clk 0:00:04]} 39. a4 {[%clk 0:00:14]}  Nf4+ {[%clk 0:00:03]} 40. Kf2 {[%clk 0:00:12]}  Re7 {[%clk 0:00:02]} 41. Ke3 {[%clk 0:00:10]} 1-0


[Site "https://www.chess.com"]

[Event "Titled Tuesday Blitz October 25 Late 2022"]
[White "Deac, Bogdan-Daniel"]
[Black "Paravyan, David"]
[WhiteFideId "1226380"]
[BlackFideId "4194985"]
[WhiteElo "3010"]
[BlackElo "3100"]
[Result "1-0"]
[Round "11"]
[TimeControl "180+1"]
[Date "2022.10.26"]
[WhiteClock "0:00:07"]
[BlackClock "0:00:09"]

1. e4 {[%clk 0:03:00]}  e5 {[%clk 0:03:00]} 2. Nf3 {[%clk 0:03:00]}  Nf6 {[%clk 0:03:01]} 3. Nxe5 {[%clk 0:03:00]}  d6 {[%clk 0:03:01]} 4. Nf3 {[%clk 0:03:01]}  Nxe4 {[%clk 0:03:01]} 5. d4 {[%clk 0:03:01]}  d5 {[%clk 0:03:02]} 6. Bd3 {[%clk 0:03:02]}  Bd6 {[%clk 0:03:03]} 7. O-O {[%clk 0:03:03]}  O-O {[%clk 0:03:03]} 8. c4 {[%clk 0:03:03]}  c6 {[%clk 0:03:04]} 9. Re1 {[%clk 0:03:04]}  Bf5 {[%clk 0:03:03]} 10. Qb3 {[%clk 0:03:04]}  Na6 {[%clk 0:03:04]} 11. cxd5 {[%clk 0:03:02]}  cxd5 {[%clk 0:03:04]} 12. Nc3 {[%clk 0:03:03]}  Be6 {[%clk 0:03:05]} 13. Qa4 {[%clk 0:02:31]}  Nxc3 {[%clk 0:03:01]} 14. bxc3 {[%clk 0:02:30]}  Nc7 {[%clk 0:03:01]} 15. Ng5 {[%clk 0:02:21]}  h6 {[%clk 0:02:53]} 16. Nxe6 {[%clk 0:02:21]}  fxe6 {[%clk 0:02:53]} 17. g3 {[%clk 0:02:17]}  Qf6 {[%clk 0:02:24]} 18. Be3 {[%clk 0:02:04]}  a6 {[%clk 0:02:07]} 19. Qc2 {[%clk 0:01:43]}  b5 {[%clk 0:02:03]} 20. a4 {[%clk 0:01:41]}  Rfc8 {[%clk 0:01:54]} 21. Qe2 {[%clk 0:01:24]}  Qf7 {[%clk 0:01:34]} 22. Qg4 {[%clk 0:00:51]}  h5 {[%clk 0:01:34]} 23. Qg5 {[%clk 0:00:47]}  Be7 {[%clk 0:01:30]} 24. Qg6 {[%clk 0:00:25]}  bxa4 {[%clk 0:01:29]} 25. Rxa4 {[%clk 0:00:25]}  Qxg6 {[%clk 0:01:23]} 26. Bxg6 {[%clk 0:00:24]}  h4 {[%clk 0:01:15]} 27. Rea1 {[%clk 0:00:21]}  Rab8 {[%clk 0:01:01]} 28. Bf4 {[%clk 0:00:20]}  Rb3 {[%clk 0:00:59]} 29. Bxc7 {[%clk 0:00:17]}  Rxc7 {[%clk 0:01:00]} 30. Rxa6 {[%clk 0:00:18]}  Rbxc3 {[%clk 0:00:52]} 31. Rxe6 {[%clk 0:00:15]}  h3 {[%clk 0:00:47]} 32. Rae1 {[%clk 0:00:05]}  R3c6 {[%clk 0:00:31]} 33. Rxc6 {[%clk 0:00:03]}  Rxc6 {[%clk 0:00:32]} 34. Bf5 {[%clk 0:00:04]}  Bf6 {[%clk 0:00:33]} 35. Bxh3 {[%clk 0:00:04]}  Bxd4 {[%clk 0:00:26]} 36. Be6+ {[%clk 0:00:04]}  Kf8 {[%clk 0:00:27]} 37. Bxd5 {[%clk 0:00:03]}  Rc2 {[%clk 0:00:24]} 38. Rf1 {[%clk 0:00:04]}  g5 {[%clk 0:00:24]} 39. Kg2 {[%clk 0:00:04]}  Kg7 {[%clk 0:00:24]} 40. h3 {[%clk 0:00:03]}  Kf6 {[%clk 0:00:23]} 41. Kf3 {[%clk 0:00:03]}  Ke5 {[%clk 0:00:20]} 42. Bf7 {[%clk 0:00:03]}  Kf6 {[%clk 0:00:20]} 43. Bg8 {[%clk 0:00:03]}  Ke5 {[%clk 0:00:18]} 44. Bh7 {[%clk 0:00:03]}  Rb2 {[%clk 0:00:18]} 45. Bd3 {[%clk 0:00:03]}  Rb3 {[%clk 0:00:10]} 46. Re1+ {[%clk 0:00:02]}  Kf6 {[%clk 0:00:09]} 47. Rd1 {[%clk 0:00:03]}  Ke5 {[%clk 0:00:09]} 48. Kg2 {[%clk 0:00:02]}  Rb2 {[%clk 0:00:09]} 49. Re1+ {[%clk 0:00:02]}  Kf6 {[%clk 0:00:10]} 50. Be2 {[%clk 0:00:03]}  Bc5 {[%clk 0:00:09]} 51. Kf1 {[%clk 0:00:02]}  Bd4 {[%clk 0:00:09]} 52. Rd1 {[%clk 0:00:03]}  Ke5 {[%clk 0:00:10]} 53. Rd3 {[%clk 0:00:03]}  Rb1+ {[%clk 0:00:09]} 54. Kg2 {[%clk 0:00:04]}  Rb2 {[%clk 0:00:09]} 55. Kf3 {[%clk 0:00:04]}  Rb8 {[%clk 0:00:10]} 56. Ra3 {[%clk 0:00:04]}  Rf8+ {[%clk 0:00:10]} 57. Kg4 {[%clk 0:00:04]}  Bxf2 {[%clk 0:00:08]} 58. Ra5+ {[%clk 0:00:04]}  Kd6 {[%clk 0:00:02]} 59. Rxg5 {[%clk 0:00:04]}  Rb8 {[%clk 0:00:02]} 60. h4 {[%clk 0:00:04]}  Rb3 {[%clk 0:00:02]} 61. Bf3 {[%clk 0:00:03]}  Rb4+ {[%clk 0:00:03]} 62. Kh3 {[%clk 0:00:04]}  Rb3 {[%clk 0:00:03]} 63. Rg6+ {[%clk 0:00:04]}  Ke5 {[%clk 0:00:03]} 64. Kg2 {[%clk 0:00:05]}  Be3 {[%clk 0:00:03]} 65. h5 {[%clk 0:00:04]}  Rb2+ {[%clk 0:00:03]} 66. Kh3 {[%clk 0:00:04]}  Rf2 {[%clk 0:00:04]} 67. Bg4 {[%clk 0:00:04]}  Rf6 {[%clk 0:00:04]} 68. Rg8 {[%clk 0:00:04]}  Rf1 {[%clk 0:00:04]} 69. Re8+ {[%clk 0:00:05]}  Kd4 {[%clk 0:00:05]} 70. Kg2 {[%clk 0:00:04]}  Rg1+ {[%clk 0:00:03]} 71. Kh2 {[%clk 0:00:04]}  Rf1 {[%clk 0:00:04]} 72. Bh3 {[%clk 0:00:04]}  Rf2+ {[%clk 0:00:03]} 73. Bg2 {[%clk 0:00:04]}  Rf6 {[%clk 0:00:03]} 74. g4 {[%clk 0:00:04]}  Bg5 {[%clk 0:00:02]} 75. Kg3 {[%clk 0:00:04]}  Rb6 {[%clk 0:00:02]} 76. Rg8 {[%clk 0:00:04]}  Rb3+ {[%clk 0:00:02]} 77. Bf3 {[%clk 0:00:04]}  Rb5 {[%clk 0:00:02]} 78. Rg6 {[%clk 0:00:03]}  Ke3 {[%clk 0:00:03]} 79. Re6+ {[%clk 0:00:03]}  Kd4 {[%clk 0:00:03]} 80. Re4+ {[%clk 0:00:04]}  Kd3 {[%clk 0:00:03]} 81. Re6 {[%clk 0:00:04]}  Kd4 {[%clk 0:00:02]} 82. h6 {[%clk 0:00:05]}  Rb8 {[%clk 0:00:02]} 83. h7 {[%clk 0:00:04]}  Rh8 {[%clk 0:00:02]} 84. Be4 {[%clk 0:00:04]}  Kc5 {[%clk 0:00:03]} 85. Bf5 {[%clk 0:00:04]}  Kd5 {[%clk 0:00:03]} 86. Rg6 {[%clk 0:00:04]}  Be7 {[%clk 0:00:02]} 87. Rg8 {[%clk 0:00:03]}  Bf6 {[%clk 0:00:02]} 88. g5 {[%clk 0:00:03]}  Be5+ {[%clk 0:00:01]} 89. Kg4 {[%clk 0:00:04]}  Kd6 {[%clk 0:00:02]} 90. g6 {[%clk 0:00:04]}  Ke7 {[%clk 0:00:03]} 91. g7 {[%clk 0:00:03]}  Bxg7 {[%clk 0:00:02]} 92. Rxg7+ {[%clk 0:00:03]}  Kf8 {[%clk 0:00:02]} 93. Ra7 {[%clk 0:00:03]}  Ke8 {[%clk 0:00:02]} 94. Ra8+ {[%clk 0:00:03]}  Kf7 {[%clk 0:00:03]} 95. Rxh8 {[%clk 0:00:03]}  Kg7 {[%clk 0:00:04]} 96. Ra8 {[%clk 0:00:04]}  Kh6 {[%clk 0:00:05]} 97. Ra6+ {[%clk 0:00:04]}  Kg7 {[%clk 0:00:05]} 98. Ra1 {[%clk 0:00:04]}  Kh8 {[%clk 0:00:05]} 99. Kg5 {[%clk 0:00:04]}  Kg7 {[%clk 0:00:06]} 100. Ra7+ {[%clk 0:00:05]}  Kh8 {[%clk 0:00:07]} 101. Ra8+ {[%clk 0:00:05]}  Kg7 {[%clk 0:00:08]} 102. h8=Q+ {[%clk 0:00:06]}  Kf7 {[%clk 0:00:09]} 103. Qf8# {[%clk 0:00:07]} 1-0


[Site "https://www.chess.com"]

[Event "Titled Tuesday Blitz October 25 Late 2022"]
[White "Dilmukhametov, Artur"]
[Black "Senthil Maran K"]
[WhiteFideId "24179922"]
[BlackFideId "25035681"]
[WhiteElo "2197"]
[BlackElo "2109"]
[Result "1-0"]
[Round "11"]
[TimeControl "180+1"]
[Date "2022.10.26"]
[WhiteClock "0:00:06"]
[BlackClock "0:00:04"]

1. d4 {[%clk 0:03:00]}  h6 {[%clk 0:02:57]} 2. e4 {[%clk 0:02:55]}  a6 {[%clk 0:02:57]} 3. Nf3 {[%clk 0:02:42]}  e6 {[%clk 0:02:56]} 4. Bd3 {[%clk 0:02:42]}  b5 {[%clk 0:02:56]} 5. O-O {[%clk 0:02:43]}  Bb7 {[%clk 0:02:56]} 6. a4 {[%clk 0:02:41]}  b4 {[%clk 0:02:55]} 7. Qe2 {[%clk 0:02:39]}  c5 {[%clk 0:02:55]} 8. c3 {[%clk 0:02:39]}  Nf6 {[%clk 0:02:46]} 9. e5 {[%clk 0:02:34]}  Nd5 {[%clk 0:02:45]} 10. Be4 {[%clk 0:02:34]}  Qc7 {[%clk 0:02:34]} 11. c4 {[%clk 0:02:10]}  Nb6 {[%clk 0:02:34]} 12. a5 {[%clk 0:02:10]}  Nc8 {[%clk 0:02:28]} 13. d5 {[%clk 0:01:58]}  Ra7 {[%clk 0:02:14]} 14. Rd1 {[%clk 0:01:46]}  g5 {[%clk 0:02:06]} 15. d6 {[%clk 0:01:33]}  Qd8 {[%clk 0:02:04]} 16. Bxb7 {[%clk 0:01:32]}  Rxb7 {[%clk 0:02:05]} 17. Nbd2 {[%clk 0:01:29]}  Nc6 {[%clk 0:01:58]} 18. Ne4 {[%clk 0:01:23]}  Bg7 {[%clk 0:01:55]} 19. Nxc5 {[%clk 0:01:23]}  Ra7 {[%clk 0:01:52]} 20. h3 {[%clk 0:01:21]}  O-O {[%clk 0:01:52]} 21. Be3 {[%clk 0:01:17]}  Ra8 {[%clk 0:01:51]} 22. Nd3 {[%clk 0:01:07]}  f6 {[%clk 0:01:48]} 23. exf6 {[%clk 0:00:49]}  Qxf6 {[%clk 0:01:49]} 24. c5 {[%clk 0:00:40]}  N8a7 {[%clk 0:01:44]} 25. Rab1 {[%clk 0:00:39]}  Rab8 {[%clk 0:01:41]} 26. Nd2 {[%clk 0:00:38]}  Nxa5 {[%clk 0:01:39]} 27. Ra1 {[%clk 0:00:34]}  N7c6 {[%clk 0:01:36]} 28. Ra4 {[%clk 0:00:30]}  Qf5 {[%clk 0:01:18]} 29. Rda1 {[%clk 0:00:30]}  Rb5 {[%clk 0:01:14]} 30. Rc1 {[%clk 0:00:23]}  Qd5 {[%clk 0:00:48]} 31. Rd1 {[%clk 0:00:16]}  Nc4 {[%clk 0:00:44]} 32. Nxc4 {[%clk 0:00:16]}  Qxc4 {[%clk 0:00:44]} 33. Rxa6 {[%clk 0:00:15]}  Rxc5 {[%clk 0:00:41]} 34. Bxc5 {[%clk 0:00:15]}  Qxa6 {[%clk 0:00:41]} 35. Qd2 {[%clk 0:00:11]}  b3 {[%clk 0:00:38]} 36. Be3 {[%clk 0:00:10]}  Qc4 {[%clk 0:00:38]} 37. Nc5 {[%clk 0:00:10]}  Rf7 {[%clk 0:00:37]} 38. Rc1 {[%clk 0:00:10]}  Qb5 {[%clk 0:00:30]} 39. Ra1 {[%clk 0:00:04]}  Qb4 {[%clk 0:00:10]} 40. Qxb4 {[%clk 0:00:03]}  Nxb4 {[%clk 0:00:10]} 41. Ra3 {[%clk 0:00:03]}  Nc2 {[%clk 0:00:09]} 42. Rxb3 {[%clk 0:00:03]}  Nxe3 {[%clk 0:00:08]} 43. fxe3 {[%clk 0:00:04]}  Be5 {[%clk 0:00:08]} 44. Ne4 {[%clk 0:00:04]}  Kg7 {[%clk 0:00:08]} 45. Rb7 {[%clk 0:00:03]}  Kg6 {[%clk 0:00:08]} 46. g4 {[%clk 0:00:04]}  h5 {[%clk 0:00:08]} 47. Kg2 {[%clk 0:00:04]}  h4 {[%clk 0:00:08]} 48. b4 {[%clk 0:00:04]}  Rf8 {[%clk 0:00:06]} 49. Rxd7 {[%clk 0:00:03]}  Rb8 {[%clk 0:00:06]} 50. Re7 {[%clk 0:00:04]}  Bg7 {[%clk 0:00:05]} 51. Rxe6+ {[%clk 0:00:04]}  Kf7 {[%clk 0:00:05]} 52. Nxg5+ {[%clk 0:00:04]}  Kf8 {[%clk 0:00:05]} 53. Re7 {[%clk 0:00:05]}  Rb6 {[%clk 0:00:05]} 54. Ne6+ {[%clk 0:00:05]}  Kg8 {[%clk 0:00:05]} 55. Rxg7+ {[%clk 0:00:06]}  Kh8 {[%clk 0:00:05]} 56. Rd7 {[%clk 0:00:06]}  Rxb4 {[%clk 0:00:05]} 57. Nd4 {[%clk 0:00:07]}  Rb6 {[%clk 0:00:04]} 58. Nf5 {[%clk 0:00:07]}  Kg8 {[%clk 0:00:04]} 59. Rc7 {[%clk 0:00:07]}  Rb2+ {[%clk 0:00:03]} 60. Kf3 {[%clk 0:00:06]}  Rd2 {[%clk 0:00:04]} 61. d7 {[%clk 0:00:06]}  Kf7 {[%clk 0:00:04]} 62. d8=Q+ {[%clk 0:00:06]}  Kg6 {[%clk 0:00:04]} 63. Rg7# {[%clk 0:00:06]} 1-0


[Site "https://www.chess.com"]